bitfinex-derivatives/quotes_BTCF0:USTF0_20241019
["timestamp","ask_amount","ask_price","bid_price","bid_amount"]
[1729348444766,0.065842,68342.0,68340.0,0.065843]
[1729348444965,0.065842,68341.0,68340.0,0.065843]
[1729348445758,0.065843,68340.0,68339.0,0.0002]
[1729348450455,0.426643,68340.0,68339.0,0.0002]
[1729348452661,1.465643,68340.0,68339.0,0.0002]
[1729348454355,1.465643,68340.0,68330.0,0.02674171]
[1729348454555,0.065856,68327.0,68325.0,0.065858]
[1729348455664,0.065857,68326.0,68325.0,0.065858]
[1729348456685,0.0924,68329.0,68320.0,0.3608]
[1729348456686,0.065862,68322.0,68320.0,0.3608]
[1729348456870,0.065862,68321.0,68320.0,0.3608]
[1729348458971,0.3608,68323.0,68314.0,0.3608]
[1729348459174,0.065868,68315.0,68314.0,0.3608]
[1729348459361,0.158268,68315.0,68314.0,0.3608]
[1729348463771,0.158268,68315.0,68311.0,0.065871]
[1729348463772,0.06587,68312.0,68311.0,0.065871]
[1729348464074,0.065875,68308.0,68305.0,0.129877]
[1729348464277,0.065876,68307.0,68305.0,0.129877]
[1729348464470,0.065876,68306.0,68305.0,0.15653826]
[1729348464878,0.065876,68306.0,68305.0,0.05886126]
[1729348465584,0.065877,68305.0,68304.0,0.3608]
[1729348466285,0.158317,68305.0,68304.0,0.3608]
[1729348468485,0.158317,68305.0,68302.0,0.06588]
[1729348469482,0.158317,68305.0,68298.0,0.0328]
[1729348469483,0.158317,68305.0,68303.0,0.065879]
[1729348470085,0.158317,68305.0,68300.0,0.065881]
[1729348470086,0.065881,68302.0,68300.0,0.065881]
[1729348471884,0.065881,68302.0,68301.0,0.065881]
[1729348476381,0.065881,68302.0,68301.0,0.15616491]
[1729348478392,0.065876,68307.0,68305.0,0.065876]
[1729348478693,0.09212,68306.0,68305.0,0.065876]
[1729348478990,0.065876,68307.0,68305.0,0.065876]
[1729348479194,0.065876,68307.0,68303.0,0.07260588]
[1729348479195,0.065876,68307.0,68306.0,0.0002]
[1729348479387,0.065876,68307.0,68306.0,0.066076]
[1729348480490,0.065876,68307.0,68306.0,0.22902478]
[1729348481280,0.0002,68308.0,68307.0,0.065875]
[1729348481485,0.0002,68308.0,68307.0,0.1564179]
[1729348482593,0.0002,68308.0,68307.0,0.24364827]
[1729348482895,0.0002,68308.0,68307.0,0.1564179]
[1729348484385,0.0002,68308.0,68307.0,0.26385118]
[1729348484791,0.066074,68308.0,68307.0,0.26385118]
[1729348485100,0.066074,68308.0,68307.0,0.26392151]
[1729348487292,0.066074,68308.0,68307.0,0.19804651]
[1729348488296,0.066074,68308.0,68307.0,0.19853465]
[1729348491394,0.066074,68308.0,68307.0,0.09068272]
[1729348497906,0.066074,68308.0,68307.0,0.09074831]
[1729348498303,0.066074,68308.0,68307.0,0.19873314]
[1729348506097,0.066074,68308.0,68307.0,0.19856282]
[1729348506309,0.066074,68308.0,68307.0,0.09069557]
[1729348507209,0.066074,68308.0,68307.0,0.15657057]
[1729348510215,0.0002,68310.0,68309.0,0.065873]
[1729348510414,0.0002,68310.0,68309.0,0.15656857]
[1729348510819,0.0002,68310.0,68309.0,0.15632291]
[1729348513010,0.0002,68310.0,68309.0,0.26387017]
[1729348514212,0.0002,68310.0,68309.0,0.24378193]
[1729348514415,0.066063,68320.0,68319.0,0.065864]
[1729348514617,0.066063,68320.0,68319.0,0.26340781]
[1729348515505,0.066063,68320.0,68319.0,0.15631391]
[1729348515709,0.0002,68320.0,68319.0,0.15631391]
[1729348518422,0.0002,68320.0,68319.0,0.18328252]
[1729348519409,0.0002,68320.0,68319.0,0.11741852]
[1729348519410,0.066063,68320.0,68319.0,0.11741852]
[1729348520932,0.066063,68320.0,68319.0,0.19014539]
[1729348521116,0.066063,68320.0,68319.0,0.09989548]
[1729348521512,0.066063,68320.0,68319.0,0.02716861]
[1729348530123,0.066063,68320.0,68319.0,0.09303261]
[1729348531930,0.066063,68320.0,68319.0,0.02716861]
[1729348532932,0.157383,68320.0,68319.0,0.02716861]
[1729348533924,0.157383,68320.0,68319.0,0.0002]
[1729348535625,0.757383,68320.0,68319.0,0.0002]
[1729348536027,0.065872,68310.0,68309.0,0.04383818]
[1729348536228,0.517992,68310.0,68309.0,0.0002]
[1729348536723,0.065874,68308.0,68307.0,0.0002]
[1729348536928,0.065874,68308.0,68307.0,0.0584315]
[1729348537129,1.105074,68308.0,68307.0,0.0584315]
[1729348537422,1.105074,68308.0,68307.0,0.0002]
[1729348539540,1.135674,68308.0,68307.0,0.0002]
[1729348539737,1.167874,68308.0,68307.0,0.0002]
[1729348540134,1.167874,68308.0,68307.0,0.0438442]
[1729348540339,1.167874,68308.0,68307.0,0.04383458]
[1729348540535,1.167874,68308.0,68307.0,0.0002]
[1729348541541,1.167874,68308.0,68307.0,0.04382588]
[1729348542341,1.167874,68308.0,68307.0,0.0002]
[1729348543028,1.528674,68308.0,68307.0,0.0002]
[1729348546237,1.089474,68308.0,68307.0,0.0002]
[1729348547142,1.180834,68308.0,68307.0,0.0002]
[1729348548442,0.580834,68308.0,68307.0,0.0002]
[1729348551939,0.580834,68308.0,68307.0,0.04382588]
[1729348553239,0.220034,68308.0,68307.0,0.04382588]
[1729348553445,0.580834,68308.0,68307.0,0.04382588]
[1729348553643,0.580834,68308.0,68307.0,0.0002]
[1729348555936,0.220034,68308.0,68307.0,0.0002]
[1729348556136,0.580834,68308.0,68307.0,0.0002]
[1729348556846,0.489474,68308.0,68307.0,0.0002]
[1729348557047,0.580834,68308.0,68307.0,0.0002]
[1729348559054,0.220034,68308.0,68307.0,0.0002]
[1729348559235,0.580834,68308.0,68307.0,0.0002]
[1729348559934,0.220034,68308.0,68307.0,0.0002]
[1729348560138,0.580834,68308.0,68307.0,0.0002]
[1729348563345,0.550234,68308.0,68307.0,0.0002]
[1729348564641,0.189434,68308.0,68307.0,0.0002]
[1729348564846,0.550234,68308.0,68307.0,0.0002]
[1729348566557,0.550234,68308.0,68307.0,0.0585412]
[1729348566744,0.550234,68308.0,68307.0,0.0002]
[1729348568445,0.065875,68307.0,68306.0,0.0002]
[1729348570439,0.426675,68307.0,68306.0,0.0002]
[1729348574752,0.065875,68307.0,68306.0,0.0002]
[1729348575356,0.426675,68307.0,68306.0,0.0002]
[1729348576147,0.065875,68307.0,68306.0,0.0002]
[1729348576353,0.426675,68307.0,68306.0,0.0002]
[1729348576556,0.517555,68307.0,68306.0,0.0002]
[1729348580844,0.517555,68307.0,68306.0,0.05851663]
[1729348585153,0.426675,68307.0,68306.0,0.05851663]
[1729348585354,0.517555,68307.0,68306.0,0.05851663]
[1729348586056,0.517555,68307.0,68306.0,0.0002]
[1729348592065,0.426675,68307.0,68306.0,0.0002]
[1729348592270,0.517555,68307.0,68306.0,0.0002]
[1729348592564,0.517555,68307.0,68306.0,0.05851663]
[1729348594456,0.517555,68307.0,68306.0,0.0002]
[1729348595065,0.426675,68307.0,68306.0,0.0002]
[1729348595264,0.517555,68307.0,68306.0,0.0002]
[1729348601073,0.065878,68304.0,68303.0,0.0316]
[1729348601569,0.065877,68305.0,68299.0,0.04374578]
[1729348601775,0.065883,68299.0,68298.0,0.04374578]
[1729348601974,0.3608,68300.0,68297.0,0.04374578]
[1729348601975,0.065884,68298.0,68297.0,0.04374578]
[1729348602272,0.156204,68298.0,68297.0,0.04374578]
[1729348604064,0.065886,68296.0,68295.0,0.07289579]
[1729348604259,0.156206,68296.0,68295.0,0.16401259]
[1729348606176,0.156206,68296.0,68295.0,0.0911168]
[1729348606472,0.156206,68296.0,68295.0,0.1640113]
[1729348608977,0.156206,68296.0,68295.0,0.16397574]
[1729348609861,0.156206,68296.0,68295.0,0.09108124]
[1729348611071,0.156206,68296.0,68295.0,0.05830369]
[1729348612576,0.09032,68296.0,68295.0,0.05830369]
[1729348612874,0.065887,68295.0,68294.0,0.05830369]
[1729348619083,0.065887,68295.0,68294.0,0.09093926]
[1729348620183,0.426687,68295.0,68294.0,0.07286482]
[1729348620380,1.562367,68295.0,68293.0,7.1e-07]
[1729348620575,1.562367,68295.0,68280.0,0.07286482]
[1729348620576,0.4572,68295.0,68280.0,0.07286482]
[1729348620770,0.4572,68295.0,68278.0,0.07286482]
[1729348620771,0.3608,68281.0,68278.0,0.07286482]
[1729348620981,0.3608,68281.0,68273.0,0.0965]
[1729348620982,0.09032,68280.0,68277.0,0.07286482]
[1729348621278,0.09032,68280.0,68275.0,0.07286482]
[1729348621795,0.065902,68279.0,68276.0,0.07286482]
[1729348622085,0.065904,68278.0,68275.0,0.07286482]
[1729348622584,0.09032,68280.0,68275.0,0.07286482]
[1729348622782,0.065905,68277.0,68275.0,0.07286482]
[1729348622974,0.065905,68277.0,68276.0,0.07286482]
[1729348623284,0.065905,68277.0,68275.0,0.13877082]
[1729348624167,0.065905,68277.0,68275.0,0.065906]
[1729348624370,0.065905,68277.0,68276.0,0.52413154]
[1729348625174,0.065905,68277.0,68276.0,0.43366482]
[1729348625374,0.0006,68283.0,68276.0,0.43366482]
[1729348625579,0.02442,68279.0,68278.0,0.065903]
[1729348625993,0.02442,68279.0,68278.0,0.13876782]
[1729348626283,0.02442,68279.0,68278.0,0.15625066]
[1729348627676,0.065899,68282.0,68280.0,0.065901]
[1729348627877,0.065899,68282.0,68281.0,0.09054766]
[1729348629686,0.065899,68282.0,68281.0,0.15644766]
[1729348631375,0.065899,68282.0,68281.0,0.09054766]
[1729348633483,0.065899,68282.0,68281.0,0.11638589]
[1729348634088,0.065899,68282.0,68281.0,0.02603823]
[1729348641197,0.065899,68282.0,68281.0,0.11637274]
[1729348641584,0.065899,68282.0,68281.0,0.11638195]
[1729348642087,0.065899,68282.0,68281.0,0.09881639]
[1729348642385,0.065899,68282.0,68281.0,0.02603823]
[1729348645997,0.065899,68282.0,68281.0,0.0002]
[1729348649499,1.105259,68282.0,68281.0,0.0002]
[1729348649696,0.065901,68281.0,68265.0,0.065915]
[1729348649901,0.426715,68267.0,68266.0,0.065915]
[1729348650197,0.065916,68265.0,68264.0,0.07277816]
[1729348650394,0.065916,68265.0,68263.0,0.0263504]
[1729348650395,0.065917,68264.0,68263.0,0.0263504]
[1729348650593,0.065917,68264.0,68263.0,0.065917]
[1729348652301,0.065917,68264.0,68263.0,0.139187]
[1729348654501,0.065918,68263.0,68262.0,0.02920475]
[1729348656201,0.065918,68263.0,68262.0,0.12043369]
[1729348657101,0.065918,68263.0,68262.0,0.18635269]
[1729348657305,0.065918,68263.0,68262.0,0.25962269]
[1729348657606,0.065918,68263.0,68262.0,0.36822719]
[1729348662101,0.09068,68265.0,68262.0,0.30230819]
[1729348662301,0.156596,68265.0,68264.0,0.139387]
[1729348662501,0.156596,68265.0,68264.0,0.23061594]
[1729348663809,0.065916,68265.0,68264.0,0.23061594]
[1729348664009,0.156596,68265.0,68264.0,0.23061594]
[1729348664402,0.156596,68265.0,68264.0,0.23045928]
[1729348665717,0.156596,68265.0,68264.0,0.31781524]
[1729348665909,0.065916,68265.0,68264.0,0.23045928]
[1729348666113,0.156596,68265.0,68264.0,0.23045928]
[1729348667114,0.156596,68265.0,68264.0,0.33901934]
[1729348669114,0.156596,68265.0,68264.0,0.23046616]
[1729348669314,0.156596,68265.0,68264.0,0.33902903]
[1729348669820,0.156596,68265.0,68264.0,0.33905133]
[1729348670119,0.156596,68265.0,68264.0,0.23046616]
[1729348670411,0.156596,68265.0,68264.0,0.33915894]
[1729348671110,0.156596,68265.0,68264.0,0.23046616]
[1729348673207,0.065916,68265.0,68264.0,0.23046616]
[1729348676214,0.065916,68265.0,68264.0,0.3179143]
[1729348676413,0.065913,68269.0,68264.0,0.16454916]
[1729348676611,0.09068,68268.0,68267.0,0.065914]
[1729348676819,0.09068,68268.0,68267.0,0.15699316]
[1729348678817,0.065913,68269.0,68267.0,0.1572169]
[1729348679112,0.0900571,68268.0,68267.0,0.15347956]
[1729348679318,0.0900571,68268.0,68267.0,0.17397937]
[1729348679818,0.1559701,68268.0,68267.0,0.17397937]
[1729348682822,0.156593,68268.0,68267.0,0.17397937]
[1729348683319,0.065913,68268.0,68267.0,0.53477937]
[1729348683521,0.065911,68270.0,68269.0,0.065911]
[1729348683725,0.065911,68270.0,68269.0,0.17417637]
[1729348686316,0.065911,68270.0,68269.0,0.066111]
[1729348686517,0.0002,68271.0,68269.0,0.0002]
[1729348686712,0.0002,68271.0,68270.0,0.066111]
[1729348686918,0.066111,68271.0,68270.0,0.066111]
[1729348687320,0.0002,68271.0,68270.0,0.066111]
[1729348687525,0.0006,68283.0,68271.0,0.4394]
[1729348687715,0.0006,68283.0,68282.0,0.066099]
[1729348687942,0.066498,68283.0,68282.0,0.13905596]
[1729348688527,0.066498,68283.0,68282.0,0.066099]
[1729348692626,0.066498,68283.0,68282.0,0.09218335]
[1729348694322,0.066498,68283.0,68282.0,0.16514031]
[1729348694530,0.066498,68283.0,68282.0,0.09218335]
[1729348695431,0.0006,68283.0,68282.0,0.09218335]
[1729348700736,0.0006,68283.0,68282.0,0.16514031]
[1729348701231,0.0006,68283.0,68282.0,0.09218335]
[1729348709142,0.0006,68283.0,68282.0,0.15034713]
[1729348709341,0.0006,68283.0,68282.0,0.18171149]
[1729348710148,0.0006,68283.0,68282.0,0.25925984]
[1729348710840,0.0006,68283.0,68282.0,0.25924159]
[1729348711435,0.0006,68283.0,68282.0,0.17169324]
[1729348713537,0.0006,68283.0,68282.0,0.27848809]
[1729348713946,0.0006,68283.0,68282.0,0.17169324]
[1729348714132,0.0006,68283.0,68282.0,0.27848355]
[1729348716147,0.0006,68283.0,68282.0,0.63928355]
[1729348716538,0.0002,68286.0,68282.0,0.63928355]
[1729348716737,0.00219728,68295.0,68285.0,0.10205411]
[1729348717053,0.00219728,68295.0,68292.0,0.3608]
[1729348717349,0.00219728,68295.0,68294.0,0.0002]
[1729348717546,0.00219728,68295.0,68294.0,0.08970989]
[1729348718250,0.00219728,68295.0,68294.0,0.26196953]
[1729348720347,0.00219728,68295.0,68294.0,0.26128495]
[1729348720557,0.0002,68301.0,68294.0,0.86128495]
[1729348720738,0.0002,68301.0,68300.0,0.0002]
[1729348720942,0.0002,68301.0,68300.0,0.19523357]
[1729348721346,0.0002,68301.0,68300.0,0.26111557]
[1729348722547,0.0002,68301.0,68300.0,0.15513326]
[1729348724256,0.0002,68301.0,68300.0,0.066082]
[1729348726243,0.0002,68303.0,68302.0,0.06588]
[1729348726444,0.0002,68303.0,68302.0,0.06608]
[1729348726940,0.0002,68303.0,68302.0,0.66608]
[1729348727353,0.0002,68303.0,68302.0,0.06608]
[1729348727642,0.065872,68311.0,68302.0,0.06608]
[1729348727643,0.065872,68311.0,68307.0,0.065875]
[1729348727845,0.09044,68320.0,68313.0,0.065869]
[1729348727846,0.3608,68314.0,68313.0,0.065869]
[1729348728053,0.3608,68314.0,68313.0,0.066069]
[1729348731755,0.065867,68316.0,68313.0,0.0002]
[1729348731956,0.065867,68316.0,68315.0,0.0002]
[1729348732449,0.065867,68316.0,68315.0,0.066068]
[1729348738752,0.065867,68316.0,68315.0,0.0002]
[1729348738952,0.426667,68316.0,68315.0,0.0002]
[1729348743164,0.426667,68316.0,68315.0,0.066068]
[1729348753463,0.426667,68316.0,68315.0,0.13877357]
[1729348754458,0.426667,68316.0,68315.0,0.066068]
[1729348755570,0.426667,68316.0,68315.0,0.13877357]
[1729348756158,0.426667,68316.0,68315.0,0.066068]
[1729348756561,0.426667,68316.0,68315.0,0.0002]
[1729348757971,0.426667,68316.0,68315.0,0.07290557]
[1729348758172,0.426667,68316.0,68315.0,0.22725661]
[1729348758365,0.426667,68316.0,68315.0,0.15455104]
[1729348761673,0.0301,68320.0,68319.0,0.065864]
[1729348761871,0.0301,68320.0,68319.0,0.066064]
[1729348762070,0.095963,68320.0,68319.0,0.066064]
[1729348769470,0.095963,68320.0,68319.0,0.13891494]
[1729348770174,0.095963,68320.0,68319.0,0.066064]
[1729348771280,0.095963,68320.0,68319.0,0.13891494]
[1729348771774,0.095963,68320.0,68319.0,0.066064]
[1729348772380,0.095963,68320.0,68319.0,0.13891494]
[1729348772780,0.095963,68320.0,68319.0,0.066064]
[1729348779882,0.065863,68320.0,68319.0,0.066064]
[1729348784586,0.065863,68320.0,68319.0,0.22715367]
[1729348786287,0.065863,68320.0,68319.0,0.22716356]
[1729348787484,0.065863,68320.0,68319.0,0.15431262]
[1729348788488,0.3608,68325.0,68319.0,0.08844862]
[1729348788786,0.065862,68324.0,68323.0,0.06586]
[1729348789285,0.065862,68324.0,68320.0,0.07284403]
[1729348789286,0.3608,68325.0,68321.0,0.07284403]
[1729348789490,0.065861,68322.0,68321.0,0.07284403]
[1729348789677,0.065861,68322.0,68321.0,0.16103665]
[1729348790984,0.065861,68322.0,68321.0,0.16103629]
[1729348791179,0.065861,68322.0,68321.0,0.08819226]
[1729348791686,0.065862,68321.0,68320.0,0.065862]
[1729348795177,0.065862,68321.0,68320.0,0.0919324]
[1729348799696,0.065862,68321.0,68320.0,0.25297602]
[1729348802291,0.065862,68321.0,68320.0,0.16476985]
[1729348802489,0.065862,68321.0,68320.0,0.18013658]
[1729348803392,0.065862,68321.0,68320.0,0.11427458]
[1729348804090,0.065862,68321.0,68320.0,0.11427435]
[1729348805589,0.065862,68321.0,68320.0,0.18710837]
[1729348806588,0.065862,68321.0,68320.0,0.0260704]
[1729348806790,0.3608,68325.0,68319.0,0.07303402]
[1729348807083,0.3608,68325.0,68324.0,0.05846824]
[1729348807084,0.426658,68325.0,68324.0,0.05846824]
[1729348808789,0.426658,68325.0,68324.0,0.0002]
[1729348816791,0.426658,68325.0,68324.0,0.04389758]
[1729348821805,0.426658,68325.0,68324.0,0.0002]
[1729348831209,0.065858,68325.0,68324.0,0.0002]
[1729348831417,0.426658,68325.0,68324.0,0.0002]
[1729348833922,0.426658,68325.0,68324.0,0.04389841]
[1729348835618,0.065858,68325.0,68324.0,0.04389841]
[1729348836621,0.065858,68325.0,68324.0,0.1612593]
[1729348837618,0.065858,68325.0,68324.0,0.2271183]
[1729348837812,0.065858,68325.0,68324.0,0.15428428]
[1729348839919,0.065858,68325.0,68324.0,0.22711841]
[1729348841318,0.065858,68325.0,68324.0,0.16125684]
[1729348841518,0.065858,68325.0,68324.0,0.08842528]
[1729348842818,0.065858,68325.0,68324.0,0.08839648]
[1729348844442,0.065858,68325.0,68324.0,0.07302614]
[1729348847223,0.065858,68325.0,68324.0,0.0002]
[1729348847618,0.0002,68327.0,68324.0,0.0002]
[1729348847816,0.0002,68327.0,68326.0,0.0002]
[1729348848133,0.0002,68327.0,68326.0,0.08823744]
[1729348850126,0.00219565,68339.0,68326.0,0.79284973]
[1729348850331,0.00219565,68339.0,68338.0,0.0002]
[1729348850517,0.06803965,68339.0,68338.0,0.0002]
[1729348853125,0.06803965,68339.0,68338.0,0.02593994]
[1729348853326,0.06803965,68339.0,68338.0,0.0002]
[1729348856223,0.06803965,68339.0,68338.0,0.066045]
[1729348856929,0.00219565,68339.0,68338.0,0.066045]
[1729348861633,0.3608,68341.0,68340.0,0.065843]
[1729348862128,0.3608,68341.0,68340.0,0.066043]
[1729348866233,0.426642,68341.0,68340.0,0.066043]
[1729348866533,0.3608,68341.0,68340.0,0.10955968]
[1729348866736,0.3608,68341.0,68340.0,0.066043]
[1729348872846,0.06584,68344.0,68340.0,0.066043]
[1729348872847,0.06584,68344.0,68342.0,0.065841]
[1729348873146,0.06584,68344.0,68343.0,0.0002]
[1729348877538,0.06584,68344.0,68343.0,0.05823863]
[1729348878545,0.06584,68344.0,68343.0,0.0002]
[1729348888461,0.06584,68344.0,68343.0,0.0438046]
[1729348889950,0.06584,68344.0,68343.0,0.08748473]
[1729348893255,0.06584,68344.0,68343.0,0.0002]
[1729348895462,0.06584,68344.0,68343.0,0.05839842]
[1729348896869,0.06584,68344.0,68343.0,0.0002]
[1729348897359,0.06584,68344.0,68343.0,0.05838985]
[1729348898263,0.06584,68344.0,68343.0,0.0002]
[1729348898968,0.06584,68344.0,68343.0,0.05838417]
[1729348899366,0.06584,68344.0,68343.0,0.0002]
[1729348899559,0.06584,68344.0,68343.0,0.05838046]
[1729348900460,0.06584,68344.0,68343.0,0.0002]
[1729348901756,0.06584,68344.0,68343.0,0.05837458]
[1729348903070,0.06584,68344.0,68343.0,0.0002]
[1729348903458,1.03896,68344.0,68340.0,0.04363829]
[1729348903659,1.03896,68344.0,68339.0,0.04363829]
[1729348903660,0.065843,68340.0,68339.0,0.04363829]
[1729348904066,0.065843,68340.0,68330.0,0.16478278]
[1729348904067,0.065851,68333.0,68330.0,0.16478278]
[1729348904267,0.426642,68341.0,68330.0,0.16478278]
[1729348904268,0.155692,68332.0,68330.0,0.16478278]
[1729348904468,0.08984,68331.0,68330.0,0.0920253]
[1729348904669,0.08984,68331.0,68330.0,0.16478278]
[1729348904854,0.155692,68331.0,68330.0,0.25218452]
[1729348905056,0.155692,68331.0,68330.0,0.0920253]
[1729348907457,0.065852,68331.0,68330.0,0.0920253]
[1729348907657,0.155692,68331.0,68330.0,0.0920253]
[1729348907868,0.0002,68338.0,68330.0,0.0261733]
[1729348908071,0.08988,68333.0,68332.0,0.065851]
[1729348908567,0.0002,68338.0,68337.0,0.065846]
[1729348908769,0.0002,68338.0,68337.0,0.066046]
[1729348911966,0.0002,68338.0,68337.0,0.15287554]
[1729348912971,0.0002,68338.0,68337.0,0.28274462]
[1729348913482,0.0002,68338.0,68337.0,0.28273222]
[1729348914488,0.0002,68338.0,68337.0,0.17926726]
[1729348914675,0.0002,68338.0,68337.0,0.28271641]
[1729348915381,0.0002,68338.0,68337.0,0.17926726]
[1729348919075,0.0002,68338.0,68337.0,0.09243772]
[1729348923080,0.066045,68338.0,68337.0,0.09243772]
[1729348927088,0.066045,68338.0,68337.0,0.26646754]
[1729348928987,0.0002,68338.0,68337.0,0.26646754]
[1729348929188,0.0002,68338.0,68337.0,0.1793032]
[1729348931687,0.0002,68338.0,68337.0,0.2828134]
[1729348932183,0.0002,68338.0,68337.0,0.1793032]
[1729348932389,0.0002,68338.0,68337.0,0.2827904]
[1729348932689,0.0002,68338.0,68337.0,0.26645852]
[1729348932893,0.0002,68338.0,68337.0,0.26645748]
[1729348933094,0.0002,68338.0,68337.0,0.26645843]
[1729348933393,0.0002,68338.0,68337.0,0.28280534]
[1729348933978,0.0002,68338.0,68337.0,0.1793032]
[1729348934594,0.0002,68338.0,68337.0,0.26647158]
[1729348935493,0.0002,68338.0,68337.0,0.1793032]
[1729348936492,0.0002,68338.0,68337.0,0.28293311]
[1729348940396,0.0002,68338.0,68337.0,0.1793032]
[1729348943394,0.00239537,68347.0,68346.0,0.065838]
[1729348943991,0.0002,68347.0,68346.0,0.065838]
[1729348944199,0.0002,68347.0,68346.0,0.066038]
[1729348944902,0.066037,68347.0,68346.0,0.066038]
[1729348945793,0.066037,68347.0,68346.0,0.09284917]
[1729348946592,0.066037,68347.0,68346.0,0.02701117]
[1729348946802,0.426837,68347.0,68346.0,0.0002]
[1729348946992,0.517317,68347.0,68346.0,0.0002]
[1729348947588,0.065841,68343.0,68342.0,0.02601796]
[1729348947800,0.065842,68342.0,68341.0,0.07273276]
[1729348948007,0.45148,68347.0,68337.0,0.0002]
[1729348948008,0.065845,68338.0,68337.0,0.0002]
[1729348948189,0.065847,68336.0,68335.0,0.07273276]
[1729348948391,0.156327,68336.0,68335.0,0.08691813]
[1729348948592,0.065849,68334.0,68333.0,0.06585]
[1729348949105,0.065849,68334.0,68333.0,0.15318491]
[1729348949295,0.065849,68334.0,68333.0,0.17907637]
[1729348951296,0.096749,68334.0,68333.0,0.17907637]
[1729348954501,0.0309,68334.0,68333.0,0.17907637]
[1729348956513,0.09048,68337.0,68336.0,0.065847]
[1729348956903,0.09048,68337.0,68336.0,0.15320906]
[1729348957100,0.09048,68337.0,68336.0,0.066047]
[1729348959217,0.0318,68338.0,68337.0,0.065846]
[1729348959421,0.0326,68340.0,68339.0,0.065844]
[1729348959606,0.0326,68340.0,68339.0,0.066044]
[1729348964012,0.0326,68340.0,68339.0,0.13868705]
[1729348964013,0.098443,68340.0,68339.0,0.13868705]
[1729348967018,0.098443,68340.0,68339.0,0.066044]
[1729348967424,0.065843,68340.0,68339.0,0.066044]
[1729348968410,0.065843,68340.0,68339.0,0.13868705]
[1729348971429,0.065843,68340.0,68339.0,0.22564067]
[1729348971725,0.065843,68340.0,68339.0,0.15299762]
[1729348972118,0.065843,68340.0,68339.0,0.066044]
[1729348975427,0.065843,68340.0,68339.0,0.22548714]
[1729348975627,0.065843,68340.0,68339.0,0.13868871]
[1729348976424,0.065843,68340.0,68339.0,0.22557749]
[1729348977436,0.065843,68340.0,68339.0,0.066044]
[1729348979225,0.065843,68340.0,68339.0,0.1530211]
[1729348980327,0.065843,68340.0,68339.0,0.24024412]
[1729348980531,0.065843,68340.0,68339.0,0.24024926]
[1729348983438,0.065843,68340.0,68339.0,0.1530211]
[1729348986234,0.065843,68340.0,68339.0,0.15307614]
[1729348986938,0.065843,68340.0,68339.0,0.25682955]
[1729348990739,0.065843,68340.0,68339.0,0.15307614]
[1729348991132,0.065843,68340.0,68339.0,0.25683679]
[1729348991542,0.065843,68340.0,68339.0,0.15307614]
[1729348991945,0.065843,68340.0,68339.0,0.15309237]
[1729348992334,0.065843,68340.0,68339.0,0.066044]
[1729348992530,0.065843,68340.0,68339.0,0.15309141]
[1729348994245,0.065843,68340.0,68339.0,0.066044]
[1729349002240,0.065843,68340.0,68339.0,0.25682887]
[1729349002744,0.065843,68340.0,68339.0,0.25682963]
[1729349004948,0.065843,68340.0,68339.0,0.15308276]
[1729349005255,0.065843,68340.0,68339.0,0.25684462]
[1729349006946,0.065843,68340.0,68339.0,0.2569003]
[1729349008248,0.0002,68341.0,68340.0,0.065843]
[1729349008451,0.0002,68341.0,68340.0,0.2568993]
[1729349009045,0.0002,68341.0,68340.0,0.2874993]
[1729349009252,0.0002,68341.0,68340.0,0.25645582]
[1729349009553,0.0002,68341.0,68340.0,0.183714]
[1729349010350,0.0002,68341.0,68340.0,0.16936815]
[1729349010955,0.0002,68341.0,68340.0,0.096643]
[1729349011655,0.0002,68341.0,68340.0,0.2561782]
[1729349012960,0.0002,68341.0,68340.0,0.16936815]
[1729349013177,0.0002,68341.0,68340.0,0.096643]
[1729349013364,0.0002,68341.0,68340.0,0.16936815]
[1729349014356,0.0002,68341.0,68340.0,0.096643]
[1729349014864,0.0002,68341.0,68340.0,0.12322086]
[1729349015048,0.0002,68341.0,68340.0,0.20990358]
[1729349015251,0.0002,68341.0,68340.0,0.28258461]
[1729349015456,0.0002,68341.0,68340.0,0.20990358]
[1729349016356,0.0002,68341.0,68340.0,0.28257673]
[1729349017463,0.0002,68341.0,68340.0,0.20990358]
[1729349017662,0.0002,68341.0,68340.0,0.17930358]
[1729349021265,0.0002,68341.0,68340.0,0.09262086]
[1729349021562,0.0002,68341.0,68340.0,0.17926738]
[1729349023059,0.0002,68341.0,68340.0,0.24096738]
[1729349024564,0.0002,68341.0,68340.0,0.2269792]
[1729349029360,0.0002,68341.0,68340.0,0.31357857]
[1729349032160,0.0002,68345.0,68344.0,0.06584]
[1729349032364,0.0002,68345.0,68344.0,0.51323376]
[1729349032759,0.0002,68345.0,68344.0,0.61617701]
[1729349037772,0.0002,68345.0,68344.0,0.51323376]
[1729349038273,0.0002,68345.0,68344.0,0.61600883]
[1729349039462,0.0002,68345.0,68344.0,0.51323376]
[1729349040673,0.0002,68345.0,68344.0,0.51307122]
[1729349047385,0.0002,68345.0,68344.0,0.61581051]
[1729349048279,0.0002,68345.0,68344.0,0.25501051]
[1729349048579,0.0002,68345.0,68344.0,0.61581051]
[1729349052679,0.0324,68356.0,68355.0,0.065829]
[1729349052984,0.0324,68356.0,68355.0,0.51306022]
[1729349053584,0.0324,68356.0,68355.0,0.5126334]
[1729349054092,0.0324,68356.0,68355.0,0.59975267]
[1729349054287,0.0324,68356.0,68355.0,0.5126334]
[1729349058582,0.0324,68356.0,68355.0,0.5126102]
[1729349059787,0.0324,68356.0,68355.0,0.51260555]
[1729349060182,0.0324,68356.0,68355.0,0.59972482]
[1729349060582,0.0324,68356.0,68355.0,0.51260555]
[1729349060779,0.0324,68356.0,68355.0,0.59972482]
[1729349060982,0.0324,68356.0,68355.0,0.62579736]
[1729349061184,0.098228,68356.0,68355.0,0.47284909]
[1729349061486,0.098228,68356.0,68355.0,0.38707254]
[1729349061792,0.0324,68356.0,68353.0,0.07261609]
[1729349061990,0.065829,68355.0,68354.0,0.05810522]
[1729349062188,0.06583,68354.0,68352.0,0.05810522]